fUSD/lending_fUSD_20240927
["ID","MTS","AMOUNT","RATE_DAILY","PERIOD"]
[339350168,1727458249486,-150.0,0.00012573,2]
[339350170,1727458249496,-1000.0,0.00012603,2]
[339350172,1727458249506,-1000.0,0.00012611,2]
[339350174,1727458249516,-1000.0,0.00012619,2]
[339350176,1727458249525,-1000.0,0.00012627,2]
[339350177,1727458249535,-1000.0,0.00012635,2]
[339350179,1727458249544,-1000.0,0.00012643,2]
[339350181,1727458249554,-1000.0,0.00012651,2]
[339350183,1727458249563,-1000.0,0.00012659,2]
[339350185,1727458249572,-150.0,0.00012667,2]
[339350187,1727458249582,-342.3196,0.00012667,2]
[339350189,1727458249592,-342.3196,0.00012667,2]
[339350191,1727458249601,-1000.0,0.00012667,2]
[339350193,1727458249611,-1467.01,0.00012675,2]
[339350195,1727458249622,-2167.57,0.00012675,2]
[339350197,1727458249631,-2209.26,0.00012675,2]
[339350200,1727458249641,-1793.09,0.00012675,2]
[339350202,1727458249650,-1278.54,0.00012675,2]
[339350204,1727458249660,-1000.0,0.00012675,2]
[339350206,1727458249669,-322.08416176,0.00012678,2]
[339350208,1727458249679,-202.8483194,0.00012679,2]
[339350210,1727458249688,-1000.0,0.00012683,2]
[339350212,1727458249697,-1000.0,0.00012691,2]
[339350214,1727458249707,-1000.0,0.00012699,2]
[339350216,1727458249716,-1000.0,0.00012707,2]
[339350218,1727458249725,-1000.0,0.00012716,2]
[339350220,1727458249734,-1000.0,0.00012724,2]
[339350222,1727458249743,-158.791904,0.00012725,2]
[339350223,1727458249752,-150.0,0.00012726,2]
[339350226,1727458249761,-1000.0,0.00012732,2]
[339350227,1727458249770,-150.0,0.00012738,2]
[339350229,1727458249779,-150.0,0.00012739,2]
[339350231,1727458249788,-322.08416175,0.00012739,2]
[339350233,1727458249798,-1000.0,0.0001274,2]
[339350235,1727458249807,-255.0,0.00012743,2]
[339350237,1727458249816,-150.0,0.00012744,2]
[339350239,1727458249825,-1000.0,0.00012748,2]
[339350241,1727458249835,-500.0,0.00012748,3]
[339350243,1727458249843,-150.0,0.00012754,2]
[339350245,1727458249853,-1000.0,0.00012756,2]
[339350248,1727458249862,-150.0,0.00012758,2]
[339350249,1727458249874,-1000.0,0.00012764,2]
[339350252,1727458249883,-150.0,0.00012767,2]
[339350253,1727458249892,-150.0,0.00012768,2]
[339350255,1727458249901,-150.0,0.00012771,2]
[339350257,1727458249910,-1000.0,0.00012772,2]
[339350259,1727458249922,-150.0,0.00012772,2]
[339350261,1727458249931,-500.0,0.00012773,2]
[339350263,1727458249941,-500.0,0.00012773,2]
[339350265,1727458249950,-500.0,0.00012776,2]
[339350267,1727458249961,-500.0,0.00012776,2]
[339350269,1727458249970,-504.1,0.00012776,2]
[339350271,1727458249980,-514.71,0.00012776,2]
[339350273,1727458249990,-500.0,0.00012776,2]
[339350275,1727458250000,-591.83,0.00012777,2]
[339350277,1727458250009,-1031.73,0.00012777,2]
[339350279,1727458250018,-500.0,0.00012777,2]
[339350281,1727458250027,-500.0,0.00012777,2]
[339350283,1727458250037,-1159.24,0.00012777,2]
[339350285,1727458250047,-781.46,0.00012777,2]
[339350287,1727458250057,-500.0,0.00012777,2]
[339350289,1727458250066,-1096.51,0.00012777,2]
[339350290,1727458250077,-500.0,0.00012777,2]
[339350291,1727458250086,-4399.1,0.00012777,2]
[339350292,1727458250096,-500.0,0.00012777,2]
[339350293,1727458250106,-7344.01,0.00012777,2]
[339350294,1727458250117,-2320.35,0.00012777,2]
[339350295,1727458250127,-5150.38,0.00012777,2]
[339350296,1727458250136,-1734.8,0.00012777,2]
[339350297,1727458250145,-1292.62,0.00012777,2]
[339350298,1727458250155,-1227.72,0.00012777,2]
[339350299,1727458250165,-517.93,0.00012777,2]
[339350300,1727458250174,-500.0,0.00012777,2]
[339350302,1727458250184,-1227.94,0.00012777,2]
[339350304,1727458250194,-4736.82,0.00012777,2]
[339350306,1727458250203,-500.0,0.00012777,2]
[339350308,1727458250213,-3638.21,0.00012777,2]
[339350310,1727458250223,-11174.34,0.00012777,2]
[339350312,1727458250233,-1942.34,0.00012777,2]
[339350314,1727458250242,-500.0,0.00012777,2]
[339350316,1727458250252,-809.59,0.00012777,2]
[339350318,1727458250262,-2314.54,0.00012777,2]
[339350320,1727458250271,-2082.08,0.00012777,2]
[339350322,1727458250283,-3438.74,0.00012777,2]
[339350324,1727458250292,-1221.44,0.00012777,2]
[339350326,1727458250301,-3011.88,0.00012777,2]
[339350328,1727458250311,-845.8,0.00012777,2]
[339350330,1727458250321,-739.39,0.00012777,2]
[339350332,1727458250331,-1579.4,0.00012777,2]
[339350334,1727458250340,-500.0,0.00012777,2]
[339350336,1727458250349,-151.0,0.00012778,2]
[339350338,1727458250359,-2522.658196,0.00012778,2]
[339350340,1727458250369,-2522.658196,0.00012778,2]
[339350342,1727458250379,-220.983732,0.00012778,2]
[339350344,1727458250388,-220.983732,0.00012778,2]
[339350346,1727458250398,-169.150973,0.00012778,2]
[339350348,1727458250407,-169.150973,0.00012778,2]
[339350350,1727458250417,-591.83,0.00012778,2]
[339350352,1727458250427,-1031.73,0.00012778,2]
[339350354,1727458250437,-173.33714614,0.00012778,2]
[339350356,1727458250447,-500.0,0.00012778,2]
[339350358,1727458250456,-1159.24,0.00012778,2]
[339350360,1727458250466,-781.46,0.00012778,2]
[339350363,1727458250476,-487.22969775,0.00012778,2]
[339350365,1727458250486,-500.0,0.00012778,2]
[339350366,1727458250495,-1096.51,0.00012778,2]
[339350368,1727458250505,-500.0,0.00012778,2]
[339350370,1727458250515,-504.1,0.00012778,2]
[339350373,1727458250525,-1467.01,0.00012778,2]
[339350375,1727458250535,-500.0,0.00012778,2]
[339350377,1727458250544,-514.71,0.00012778,2]
[339350379,1727458250554,-7344.01,0.00012778,2]
[339350381,1727458250564,-5150.38,0.00012778,2]
[339350383,1727458250573,-2167.57,0.00012778,2]
[339350385,1727458250583,-1734.8,0.00012778,2]
[339350387,1727458250593,-1227.72,0.00012778,2]
[339350389,1727458250603,-500.0,0.00012778,2]
[339350402,1727458250728,-500.0,0.00012778,2]
[339350404,1727458250738,-1227.94,0.00012778,2]
[339350406,1727458250749,-4736.82,0.00012778,2]
[339350408,1727458250760,-500.0,0.00012778,2]
[339350410,1727458250769,-3638.21,0.00012778,2]
[339350412,1727458250780,-11174.34,0.00012778,2]
[339350414,1727458250790,-1942.34,0.00012778,2]
[339350416,1727458250800,-2209.26,0.00012778,2]
[339350418,1727458250810,-500.0,0.00012778,2]
[339350420,1727458250820,-809.59,0.00012778,2]
[339350422,1727458250830,-2314.54,0.00012778,2]
[339350425,1727458250841,-2082.08,0.00012778,2]
[339350427,1727458250851,-3438.74,0.00012778,2]
[339350429,1727458250861,-1793.09,0.00012778,2]
[339350431,1727458250879,-1221.44,0.00012778,2]
[339350433,1727458250889,-1278.54,0.00012778,2]
[339350435,1727458250898,-3011.88,0.00012778,2]
[339350437,1727458250908,-1579.4,0.00012778,2]
[339350439,1727458250921,-151.0,0.00012779,2]
[339350441,1727458250930,-151.0,0.00012779,2]
[339350443,1727458250940,-151.0,0.00012779,2]
[339350445,1727458250950,-591.83,0.00012779,2]
[339350447,1727458250961,-591.83,0.00012779,2]
[339350449,1727458250970,-1031.73,0.00012779,2]
[339350451,1727458250979,-1031.73,0.00012779,2]
[339350453,1727458250989,-500.0,0.00012779,2]
[339350455,1727458251000,-250.70797708,0.00012779,2]
[339350457,1727458251010,-1159.24,0.00012779,2]
[339350459,1727458251020,-1159.24,0.00012779,2]
[339350461,1727458251030,-781.46,0.00012779,2]
[339350463,1727458251039,-781.46,0.00012779,2]
[339350465,1727458251049,-424.094485,0.00012779,2]
[339350467,1727458251059,-424.094485,0.00012779,2]
[339350469,1727458251069,-151.491631,0.00012779,2]
[339350471,1727458251078,-10000.0,0.00012779,2]
[339350473,1727458251088,-10000.0,0.00012779,2]
[339350475,1727458251097,-500.0,0.00012779,2]
[339350477,1727458251107,-205.85190165,0.00012779,2]
[339350479,1727458251120,-151.0,0.00012779,2]
[339350481,1727458251130,-151.0,0.00012779,2]
[339350483,1727458251140,-1096.51,0.00012779,2]
[339350485,1727458251149,-1096.51,0.00012779,2]
[339350487,1727458251159,-500.0,0.00012779,2]
[339350489,1727458251171,-500.0,0.00012779,2]
[339350491,1727458251181,-504.1,0.00012779,2]
[339350493,1727458251191,-504.1,0.00012779,2]
[339350495,1727458251201,-500.0,0.00012779,2]
[339350497,1727458251211,-500.0,0.00012779,2]
[339350499,1727458251221,-1467.01,0.00012779,2]
[339350501,1727458251231,-1467.01,0.00012779,2]
[339350503,1727458251240,-4399.1,0.00012779,2]
[339350505,1727458251250,-4399.1,0.00012779,2]
[339350507,1727458251260,-500.0,0.00012779,2]
[339350509,1727458251271,-500.0,0.00012779,2]
[339350511,1727458251280,-514.71,0.00012779,2]
[339350513,1727458251290,-514.71,0.00012779,2]
[339350515,1727458251299,-7344.01,0.00012779,2]
[339350517,1727458251309,-7344.01,0.00012779,2]
[339350519,1727458251320,-2320.35,0.00012779,2]
[339350521,1727458251330,-2320.35,0.00012779,2]
[339350523,1727458251340,-5150.38,0.00012779,2]
[339350525,1727458251350,-5150.38,0.00012779,2]
[339350527,1727458251360,-2167.57,0.00012779,2]
[339350529,1727458251372,-2167.57,0.00012779,2]
[339350531,1727458251382,-1734.8,0.00012779,2]
[339350533,1727458251392,-1734.8,0.00012779,2]
[339350535,1727458251402,-1292.62,0.00012779,2]
[339350537,1727458251412,-1292.62,0.00012779,2]
[339350539,1727458251422,-1227.72,0.00012779,2]
[339350541,1727458251432,-1227.72,0.00012779,2]
[339350543,1727458251442,-150.0,0.00012779,2]
[339350545,1727458251451,-500.0,0.00012779,2]
[339350547,1727458251461,-500.0,0.00012779,2]
[339350549,1727458251471,-517.93,0.00012779,2]
[339350551,1727458251481,-517.93,0.00012779,2]
[339350553,1727458251491,-331.62,0.00012779,2]
[339350555,1727458251501,-1227.94,0.00012779,2]
[339350557,1727458251511,-1227.94,0.00012779,2]
[339350559,1727458251521,-4736.82,0.00012779,2]
[339350561,1727458251531,-4736.82,0.00012779,2]
[339350563,1727458251542,-500.0,0.00012779,2]
[339350565,1727458251552,-500.0,0.00012779,2]
[339350567,1727458251561,-3638.21,0.00012779,2]
[339350569,1727458251571,-3638.21,0.00012779,2]
[339350571,1727458251580,-11174.34,0.00012779,2]
[339350573,1727458251590,-11174.34,0.00012779,2]
[339350575,1727458251600,-1942.34,0.00012779,2]
[339350577,1727458251609,-1942.34,0.00012779,2]
[339350579,1727458251620,-2209.26,0.00012779,2]
[339350581,1727458251629,-2209.26,0.00012779,2]
[339350583,1727458251639,-500.0,0.00012779,2]
[339350585,1727458251648,-500.0,0.00012779,2]
[339350587,1727458251658,-809.59,0.00012779,2]
[339350589,1727458251667,-809.59,0.00012779,2]
[339350591,1727458251677,-2314.54,0.00012779,2]
[339350593,1727458251687,-2314.54,0.00012779,2]
[339350595,1727458251697,-2082.08,0.00012779,2]
[339350597,1727458251707,-2082.08,0.00012779,2]
[339350599,1727458251717,-3438.74,0.00012779,2]
[339350601,1727458251726,-3438.74,0.00012779,2]
[339350603,1727458251736,-1793.09,0.00012779,2]
[339350605,1727458251746,-1793.09,0.00012779,2]
[339350607,1727458251755,-1221.44,0.00012779,2]
[339350609,1727458251765,-1221.44,0.00012779,2]
[339350611,1727458251774,-1278.54,0.00012779,2]
[339350613,1727458251784,-1278.54,0.00012779,2]
[339350615,1727458251794,-3011.88,0.00012779,2]
[339350617,1727458251804,-3011.88,0.00012779,2]
[339350619,1727458251813,-845.8,0.00012779,2]
[339350621,1727458251823,-845.8,0.00012779,2]
[339350623,1727458251832,-845.8,0.00012779,2]
[339350625,1727458251842,-739.39,0.00012779,2]
[339350627,1727458251852,-739.39,0.00012779,2]
[339350629,1727458251862,-739.39,0.00012779,2]
[339350631,1727458251873,-1579.4,0.00012779,2]
[339350633,1727458251882,-1579.4,0.00012779,2]
[339350635,1727458251891,-500.0,0.00012779,2]
[339350637,1727458251901,-500.0,0.00012779,2]
[339350638,1727458251911,-500.0,0.00012779,2]
[339350641,1727458251924,-191521.26904083,0.0001278,2]
[339350643,1727458251934,-161390.76195823,0.0001278,2]
[339350645,1727458251945,-106106.41270275,0.0001278,2]
[339350646,1727458251955,-151.0,0.0001278,2]
[339350649,1727458251965,-151.0,0.0001278,2]
[339350650,1727458251975,-151.0,0.0001278,2]
[339350652,1727458251985,-151.0,0.0001278,2]
[339350654,1727458251997,-170.305465,0.0001278,2]
[339350656,1727458252006,-151.0,0.0001278,2]
[339350658,1727458252016,-151.0,0.0001278,2]
[339350660,1727458252026,-163.268106,0.0001278,2]
[339350662,1727458252035,-360.252418,0.0001278,2]
[339350664,1727458252045,-360.252418,0.0001278,2]
[339350666,1727458252054,-151.0,0.0001278,2]
[339350668,1727458252064,-151.0,0.0001278,2]
[339350670,1727458252074,-151.0,0.0001278,2]
[339350672,1727458252083,-913.635573,0.0001278,2]
[339350674,1727458252092,-151.0,0.0001278,2]
[339350675,1727458252101,-913.635573,0.0001278,2]
[339350677,1727458252111,-509.230891,0.0001278,2]
[339350679,1727458252122,-509.230891,0.0001278,2]
[339350681,1727458252132,-2365.091991,0.0001278,2]
[339350683,1727458252142,-1564.887308,0.0001278,2]
[339350685,1727458252152,-1564.887308,0.0001278,2]
[339350687,1727458252162,-602.67743,0.0001278,2]
[339350689,1727458252172,-602.67743,0.0001278,2]
[339350691,1727458252181,-151.0,0.0001278,2]
[339350693,1727458252192,-339.468495,0.0001278,2]
[339350695,1727458252201,-151.0,0.0001278,2]
[339350697,1727458252211,-339.468495,0.0001278,2]
[339350699,1727458252221,-250.840614,0.0001278,2]
[339350701,1727458252230,-250.840614,0.0001278,2]
[339350703,1727458252240,-151.0,0.0001278,2]
[339350705,1727458252250,-230.092314,0.0001278,2]
[339350707,1727458252259,-230.092314,0.0001278,2]
[339350709,1727458252269,-151.0,0.0001278,2]
[339350710,1727458252280,-151.0,0.0001278,2]
[339350711,1727458252290,-279.834841,0.0001278,2]
[339350712,1727458252300,-1547.546699,0.0001278,2]
[339350713,1727458252309,-279.834841,0.0001278,2]
[339350714,1727458252318,-1547.546699,0.0001278,2]
[339350715,1727458252328,-325.540121,0.0001278,2]
[339350716,1727458252338,-325.540121,0.0001278,2]
[339350717,1727458252348,-151.0,0.0001278,2]
[339350719,1727458252358,-151.0,0.0001278,2]
[339350721,1727458252369,-151.0,0.0001278,2]
[339350723,1727458252378,-748.799981,0.0001278,2]
[339350725,1727458252387,-748.799981,0.0001278,2]
[339350727,1727458252397,-616.979651,0.0001278,2]
[339350729,1727458252406,-616.979651,0.0001278,2]
[339350731,1727458252415,-491.018369,0.0001278,2]
[339350733,1727458252425,-151.0,0.0001278,2]
[339350735,1727458252434,-291.983875,0.0001278,2]
[339350737,1727458252444,-491.018369,0.0001278,2]
[339350739,1727458252454,-151.0,0.0001278,2]
[339350741,1727458252463,-151.0,0.0001278,2]
[339350743,1727458252472,-151.0,0.0001278,2]
[339350745,1727458252482,-151.0,0.0001278,2]
[339350747,1727458252491,-151.0,0.0001278,2]
[339350748,1727458252501,-151.0,0.0001278,2]
[339350751,1727458252511,-151.0,0.0001278,2]
[339350753,1727458252521,-151.0,0.0001278,2]
[339350755,1727458252530,-1429.518155,0.0001278,2]
[339350757,1727458252541,-1233.220533,0.0001278,2]
[339350759,1727458252551,-1429.518155,0.0001278,2]
[339350761,1727458252560,-1233.220533,0.0001278,2]
[339350763,1727458252570,-1688.204168,0.0001278,2]
[339350765,1727458252579,-1688.204168,0.0001278,2]
[339350767,1727458252589,-461.756734,0.0001278,2]
[339350769,1727458252598,-461.756734,0.0001278,2]
[339350771,1727458252607,-309.67018,0.0001278,2]
[339350773,1727458252618,-309.67018,0.0001278,2]
[339350775,1727458252628,-151.0,0.0001278,2]
[339350777,1727458252638,-151.958835,0.0001278,2]
[339350779,1727458252647,-151.0,0.0001278,2]
[339350781,1727458252656,-426.409971,0.0001278,2]
[339350783,1727458252666,-817.119036,0.0001278,2]
[339350785,1727458252675,-817.119036,0.0001278,2]
[339350787,1727458252684,-426.409971,0.0001278,2]
[339350789,1727458252694,-151.0,0.0001278,2]
[339350791,1727458252703,-436.637089,0.0001278,2]
[339350793,1727458252712,-436.637089,0.0001278,2]
[339350795,1727458252722,-151.0,0.0001278,2]
[339350797,1727458252732,-151.0,0.0001278,2]
[339350799,1727458252741,-624.211411,0.0001278,2]
[339350801,1727458252751,-624.211411,0.0001278,2]
[339350803,1727458252760,-360.064182,0.0001278,2]
[339350805,1727458252770,-1640.09103,0.0001278,2]
[339350807,1727458252779,-360.064182,0.0001278,2]
[339350809,1727458252788,-1640.09103,0.0001278,2]
[339350811,1727458252797,-248.74999,0.0001278,2]
[339350813,1727458252807,-151.0,0.0001278,2]
[339350815,1727458252816,-248.74999,0.0001278,2]
[339350817,1727458252826,-1027.669378,0.0001278,2]
[339350819,1727458252836,-151.0,0.0001278,2]
[339350821,1727458252845,-1027.669378,0.0001278,2]
[339350823,1727458252854,-151.0,0.0001278,2]
[339350825,1727458252864,-4271.421985,0.0001278,2]
[339350849,1727458253081,-151.0,0.0001278,2]
[339350852,1727458253134,-4271.421985,0.0001278,2]
[339350854,1727458253144,-260.135246,0.0001278,2]
[339350856,1727458253154,-260.135246,0.0001278,2]
[339350858,1727458253163,-151.0,0.0001278,2]
[339350860,1727458253173,-151.0,0.0001278,2]
[339350861,1727458253184,-541.537463,0.0001278,2]
[339350862,1727458253193,-151.0,0.0001278,2]
[339350863,1727458253203,-541.537463,0.0001278,2]
[339350864,1727458253212,-208.065473,0.0001278,2]
[339350865,1727458253221,-208.065473,0.0001278,2]
[339350866,1727458253230,-151.0,0.0001278,2]
[339350867,1727458253240,-151.0,0.0001278,2]
[339350868,1727458253250,-214.357068,0.0001278,2]
[339350869,1727458253259,-151.0,0.0001278,2]
[339350870,1727458253269,-214.357068,0.0001278,2]
[339350871,1727458253279,-80471.57477628,0.0001278,2]
[339350872,1727458253288,-2385.892858,0.0001278,2]
[339350873,1727458253298,-2385.892858,0.0001278,2]
[339350874,1727458253307,-151.0,0.0001278,2]
[339350875,1727458253318,-533.555095,0.0001278,2]
[339350876,1727458253327,-533.555095,0.0001278,2]
[339350877,1727458253337,-2036.302866,0.0001278,2]
[339350878,1727458253347,-2036.302866,0.0001278,2]
[339350879,1727458253357,-526.689524,0.0001278,2]
[339350880,1727458253368,-150.0,0.0001278,2]
[339350881,1727458253385,-526.689524,0.0001278,2]
[339350882,1727458253395,-151.0,0.0001278,2]
[339350883,1727458253405,-548.699031,0.0001278,2]
[339350884,1727458253415,-548.699031,0.0001278,2]
[339350885,1727458253425,-619.123798,0.0001278,2]
[339350886,1727458253435,-619.123798,0.0001278,2]
[339350887,1727458253444,-152.513249,0.0001278,2]
[339350888,1727458253454,-152.513249,0.0001278,2]
[339350889,1727458253464,-151.0,0.0001278,2]
[339350890,1727458253474,-151.0,0.0001278,2]
[339350891,1727458253484,-151.0,0.0001278,2]
[339350892,1727458253494,-151.0,0.0001278,2]
[339350893,1727458253505,-151.474394,0.0001278,2]
[339350894,1727458253515,-151.0,0.0001278,2]
[339350895,1727458253526,-1862.956107,0.0001278,2]
[339350896,1727458253535,-1862.956107,0.0001278,2]
[339350897,1727458253545,-1000.0,0.0001278,2]
[339350898,1727458253556,-150.0,0.00012785,2]
[339350899,1727458253565,-1000.0,0.00012788,2]
[339350900,1727458253576,-150.0,0.00012793,2]
[339350901,1727458253586,-150.0,0.00012795,2]
[339350902,1727458253596,-150.0,0.00012795,2]
[339350903,1727458253606,-150.0,0.00012795,2]
[339350904,1727458253615,-151.0,0.00012796,2]
[339350905,1727458253627,-151.0,0.00012796,2]
[339350906,1727458253636,-151.0,0.00012796,2]
[339350907,1727458253646,-1000.0,0.00012796,2]
[339350908,1727458253655,-500.0,0.00012797,2]
[339350909,1727458253666,-1467.01,0.00012797,2]
[339350910,1727458253675,-4399.1,0.00012797,2]
[339350911,1727458253686,-2320.35,0.00012797,2]
[339350912,1727458253695,-2167.57,0.00012797,2]
[339350913,1727458253705,-1292.62,0.00012797,2]
[339350914,1727458253715,-517.93,0.00012797,2]
[339350915,1727458253725,-2209.26,0.00012797,2]
[339350916,1727458253735,-1793.09,0.00012797,2]
[339350917,1727458253745,-1278.54,0.00012797,2]
[339350918,1727458253755,-207.906488,0.00012798,2]
[339350919,1727458253765,-207.906488,0.00012798,2]
[339350920,1727458253774,-514.752056,0.00012798,2]
[339350921,1727458253784,-514.752056,0.00012798,2]
[339350922,1727458253794,-620.803128,0.00012798,2]
[339350923,1727458253803,-620.803128,0.00012798,2]
[339350924,1727458253813,-151.0,0.00012798,2]
[339350925,1727458253823,-151.0,0.00012798,2]
[339350926,1727458253834,-151.0,0.00012798,2]
[339350927,1727458253845,-2522.658196,0.00012798,2]
[339350928,1727458253854,-2522.658196,0.00012798,2]
[339350929,1727458253864,-220.983732,0.00012798,2]
[339350930,1727458253874,-220.983732,0.00012798,2]
[339350931,1727458253884,-169.150973,0.00012798,2]
[339350932,1727458253893,-169.150973,0.00012798,2]
[339350933,1727458253904,-591.83,0.00012798,2]
[339350934,1727458253915,-1031.73,0.00012798,2]
[339350935,1727458253926,-1159.24,0.00012798,2]
[339350936,1727458253936,-781.46,0.00012798,2]
[339350937,1727458253946,-1096.51,0.00012798,2]
[339350938,1727458253956,-500.0,0.00012798,2]
[339350939,1727458253965,-504.1,0.00012798,2]
[339350940,1727458253975,-500.0,0.00012798,2]
[339350941,1727458253986,-4399.1,0.00012798,2]
[339350943,1727458253997,-500.0,0.00012798,2]
[339350945,1727458254008,-514.71,0.00012798,2]
[339350947,1727458254018,-7344.01,0.00012798,2]
[339350948,1727458254027,-2320.35,0.00012798,2]
[339350950,1727458254037,-5150.38,0.00012798,2]
[339350952,1727458254047,-1734.8,0.00012798,2]
[339350954,1727458254056,-1292.62,0.00012798,2]
[339350956,1727458254066,-1227.72,0.00012798,2]
[339350958,1727458254077,-500.0,0.00012798,2]
[339350960,1727458254086,-517.93,0.00012798,2]
[339350962,1727458254097,-1227.94,0.00012798,2]
[339350964,1727458254107,-4736.82,0.00012798,2]
[339350966,1727458254117,-500.0,0.00012798,2]
[339350968,1727458254127,-3638.21,0.00012798,2]
[339350969,1727458254137,-11174.34,0.00012798,2]
[339350970,1727458254147,-1942.34,0.00012798,2]
[339350971,1727458254156,-500.0,0.00012798,2]
[339350972,1727458254167,-809.59,0.00012798,2]
[339350973,1727458254176,-2314.54,0.00012798,2]
[339350974,1727458254187,-2082.08,0.00012798,2]
[339350975,1727458254197,-3438.74,0.00012798,2]
[339350976,1727458254207,-1221.44,0.00012798,2]
[339350977,1727458254218,-3011.88,0.00012798,2]
[339350979,1727458254227,-845.8,0.00012798,2]
[339350981,1727458254237,-739.39,0.00012798,2]
[339350983,1727458254247,-1579.4,0.00012798,2]
[339350985,1727458254256,-95599.01490468,0.00012799,2]
[339350987,1727458254266,-342.3196,0.00012799,2]
[339350989,1727458254275,-342.3196,0.00012799,2]
[339350991,1727458254285,-151.0,0.00012799,2]
[339350993,1727458254296,-151.0,0.00012799,2]
[339350995,1727458254305,-156.476856,0.00012799,2]
[339350996,1727458254315,-591.83,0.00012799,2]
[339350997,1727458254325,-1031.73,0.00012799,2]
[339350998,1727458254334,-1159.24,0.00012799,2]
[339350999,1727458254344,-781.46,0.00012799,2]
[339351000,1727458254355,-424.094485,0.00012799,2]
[339351001,1727458254364,-424.094485,0.00012799,2]
[339351002,1727458254375,-10000.0,0.00012799,2]
[339351003,1727458254385,-2175.766481,0.00012799,2]
[339351004,1727458254395,-151.0,0.00012799,2]
[339351006,1727458254405,-151.0,0.00012799,2]
[339351008,1727458254415,-1096.51,0.00012799,2]
[339351010,1727458254425,-500.0,0.00012799,2]
[339351012,1727458254434,-504.1,0.00012799,2]
[339351014,1727458254445,-1467.01,0.00012799,2]
[339351016,1727458254456,-514.71,0.00012799,2]
[339351018,1727458254466,-2167.57,0.00012799,2]
[339351020,1727458254476,-500.0,0.00012799,2]
[339351022,1727458254486,-2209.26,0.00012799,2]
[339351024,1727458254496,-1793.09,0.00012799,2]
[339351026,1727458254505,-1278.54,0.00012799,2]
[339351028,1727458254515,-1000.0,0.000128,2]
[339351029,1727458254524,-439.6196,0.000128,2]
[339351031,1727458254533,-151.0,0.000128,2]
[339351033,1727458254543,-509.230891,0.000128,2]
[339351035,1727458254553,-509.230891,0.000128,2]
[339351037,1727458254563,-2365.091991,0.000128,2]
[339351039,1727458254572,-1564.887308,0.000128,2]
[339351041,1727458254582,-1564.887308,0.000128,2]
[339351044,1727458254591,-602.67743,0.000128,2]
[339351045,1727458254601,-602.67743,0.000128,2]
[339351047,1727458254611,-151.0,0.000128,2]
[339351050,1727458254622,-339.468495,0.000128,2]
[339351052,1727458254635,-151.0,0.000128,2]
[339351053,1727458254644,-339.468495,0.000128,2]
[339351055,1727458254653,-250.840614,0.000128,2]
[339351057,1727458254662,-250.840614,0.000128,2]
[339351059,1727458254672,-151.0,0.000128,2]
[339351061,1727458254682,-230.092314,0.000128,2]
[339351063,1727458254692,-230.092314,0.000128,2]
[339351066,1727458254702,-151.0,0.000128,2]
[339351068,1727458254711,-151.0,0.000128,2]
[339351070,1727458254721,-279.834841,0.000128,2]
[339351072,1727458254732,-1547.546699,0.000128,2]
[339351074,1727458254741,-279.834841,0.000128,2]
[339351076,1727458254751,-1547.546699,0.000128,2]
[339351078,1727458254761,-325.540121,0.000128,2]
[339351080,1727458254771,-325.540121,0.000128,2]